fUST/lending_fUST_20251003
["ID","MTS","AMOUNT","RATE_DAILY","PERIOD"]
[388864503,1759437050264,-653.15279576,0.00019352,2]
[388864504,1759437050273,-1120.0,0.0001937,5]
[388864505,1759437050283,-151.0,0.000194,2]
[388864506,1759437050292,-151.0,0.000194,2]
[388864507,1759437050302,-565.0,0.00019417,2]
[388864508,1759437050311,-151.0,0.00019423,2]
[388864509,1759437050321,-199.00964174,0.00019423,2]
[388864510,1759437050330,-289.76310118,0.00019423,2]
[388864511,1759437050339,-349.0,0.00019423,2]
[388864512,1759437050349,-198.93549936,0.00019423,2]
[388864513,1759437050358,-500.0,0.00019452,2]
[388864514,1759437050368,-500.0,0.00019452,2]
[388864515,1759437050378,-500.0,0.00019452,2]
[388864516,1759437050387,-500.0,0.00019452,2]
[388864517,1759437050397,-500.0,0.00019452,2]
[388864518,1759437050406,-500.0,0.00019452,2]
[388864519,1759437050415,-500.0,0.00019452,2]
[388864520,1759437050425,-500.0,0.00019452,2]
[388864521,1759437050435,-500.0,0.00019452,2]
[388864522,1759437050444,-500.0,0.00019452,2]
[388864523,1759437050453,-500.0,0.00019452,2]
[388864524,1759437050463,-500.0,0.00019452,2]
[388864525,1759437050472,-500.0,0.00019452,2]
[388864526,1759437050482,-500.0,0.00019452,2]
[388864527,1759437050491,-500.0,0.00019452,2]
[388864528,1759437050501,-500.0,0.00019452,2]
[388864529,1759437050510,-500.0,0.00019452,2]
[388864530,1759437050519,-500.0,0.00019452,2]
[388864531,1759437050529,-785.78,0.00019452,2]
[388864532,1759437050538,-480.0,0.00019452,2]
[388864533,1759437050547,-500.0,0.00019452,2]
[388864534,1759437050556,-500.0,0.00019452,2]
[388864535,1759437050566,-500.0,0.00019452,2]
[388864536,1759437050575,-428.26646763,0.00019452,2]
[388864537,1759437050584,-607.6403009,0.00019452,2]
[388864538,1759437050594,-500.0,0.00019452,2]
[388864539,1759437050603,-500.0,0.00019452,2]
[388864540,1759437050614,-500.0,0.00019452,2]
[388864541,1759437050623,-500.0,0.00019452,2]
[388864542,1759437050634,-500.0,0.00019452,2]
[388864543,1759437050644,-500.0,0.00019452,2]
[388864544,1759437050654,-442.43824422,0.00019452,2]
[388864545,1759437050664,-478.97450689,0.00019452,2]
[388864546,1759437050673,-259.26768239,0.00019452,2]
[388864547,1759437050684,-500.0,0.00019452,2]
[388864548,1759437050694,-500.0,0.00019452,2]
[388864549,1759437050703,-500.0,0.00019452,2]
[388864550,1759437050712,-500.0,0.00019452,2]
[388864551,1759437050722,-500.0,0.00019452,2]
[388864552,1759437050732,-500.0,0.00019452,2]
[388864553,1759437050741,-500.0,0.00019452,2]
[388864554,1759437050755,-500.0,0.00019452,2]
[388864555,1759437050765,-500.0,0.00019452,2]
[388864556,1759437050774,-500.0,0.00019452,2]
[388864557,1759437050784,-316.2646079,0.00019452,2]
[388864558,1759437050794,-500.0,0.00019452,2]
[388864559,1759437050804,-705.99,0.00019452,2]
[388864560,1759437050814,-500.0,0.00019452,2]
[388864561,1759437050825,-500.0,0.00019452,2]
[388864562,1759437050835,-500.0,0.00019452,2]
[388864563,1759437050844,-500.0,0.00019452,2]
[388864564,1759437050854,-500.0,0.00019452,2]
[388864565,1759437050863,-500.0,0.00019452,2]
[388864566,1759437050872,-500.0,0.00019452,2]
[388864567,1759437050882,-500.0,0.00019452,2]
[388864568,1759437050891,-500.0,0.00019452,2]
[388864569,1759437050900,-786.81,0.00019452,2]
[388864570,1759437050910,-500.0,0.00019452,2]
[388864571,1759437050919,-500.0,0.00019452,2]
[388864572,1759437050929,-500.0,0.00019452,2]
[388864573,1759437050939,-500.0,0.00019452,2]
[388864574,1759437050948,-500.0,0.00019452,2]
[388864575,1759437050958,-500.0,0.00019452,2]
[388864576,1759437050967,-500.0,0.00019452,2]
[388864577,1759437050977,-500.0,0.00019452,2]
[388864578,1759437050986,-500.0,0.00019452,2]
[388864579,1759437050996,-500.0,0.00019452,2]
[388864580,1759437051006,-500.0,0.00019452,2]
[388864581,1759437051015,-500.0,0.00019452,2]
[388864582,1759437051025,-500.0,0.00019452,2]
[388864583,1759437051034,-500.0,0.00019452,2]
[388864584,1759437051044,-500.0,0.00019452,2]
[388864585,1759437051054,-500.0,0.00019452,2]
[388864586,1759437051064,-614.55,0.00019452,2]
[388864587,1759437051074,-998.02,0.00019452,2]
[388864588,1759437051084,-618.61,0.00019452,2]
[388864589,1759437051093,-1143.86,0.00019452,2]
[388864590,1759437051104,-500.0,0.00019452,2]
[388864591,1759437051114,-520.0,0.00019452,3]
[388864592,1759437051123,-500.0,0.00019452,2]
[388864593,1759437051132,-500.0,0.00019452,2]
[388864594,1759437051142,-500.0,0.00019452,2]
[388864595,1759437051152,-500.0,0.00019452,2]
[388864596,1759437051161,-500.0,0.00019452,2]
[388864597,1759437051171,-500.0,0.00019452,2]
[388864598,1759437051180,-500.0,0.00019452,2]
[388864599,1759437051189,-500.0,0.00019452,2]
[388864600,1759437051199,-500.0,0.00019452,2]
[388864601,1759437051208,-500.0,0.00019452,2]
[388864602,1759437051218,-500.0,0.00019452,2]
[388864603,1759437051227,-500.0,0.00019452,2]
[388864604,1759437051237,-500.0,0.00019452,2]
[388864605,1759437051247,-944.51,0.00019452,2]
[388864606,1759437051257,-500.0,0.00019452,2]
[388864607,1759437051267,-500.0,0.00019452,2]
[388864608,1759437051276,-500.0,0.00019452,2]
[388864609,1759437051286,-500.0,0.00019452,2]
[388864610,1759437051295,-500.0,0.00019452,2]
[388864611,1759437051305,-644.37,0.00019452,2]
[388864612,1759437051315,-500.0,0.00019452,2]
[388864613,1759437051324,-500.0,0.00019452,2]
[388864614,1759437051334,-1194.41,0.00019452,2]
[388864615,1759437051344,-500.0,0.00019452,2]
[388864616,1759437051353,-329.04396938,0.00019452,2]
[388864617,1759437051363,-424.44614265,0.00019452,2]
[388864618,1759437051373,-500.0,0.00019452,2]
[388864619,1759437051384,-512.86,0.00019452,2]
[388864620,1759437051394,-500.0,0.00019452,2]
[388864621,1759437051403,-500.0,0.00019452,2]
[388864622,1759437051413,-500.0,0.00019452,2]
[388864623,1759437051423,-500.0,0.00019452,2]
[388864624,1759437051433,-500.0,0.00019452,2]
[388864625,1759437051443,-500.0,0.00019452,2]
[388864626,1759437051452,-500.0,0.00019452,2]
[388864627,1759437051462,-500.0,0.00019452,2]
[388864628,1759437051471,-500.0,0.00019452,2]
[388864629,1759437051481,-500.0,0.00019452,2]
[388864630,1759437051490,-500.0,0.00019452,2]
[388864631,1759437051500,-500.0,0.00019452,2]
[388864632,1759437051509,-408.06354702,0.00019452,2]
[388864633,1759437051520,-500.0,0.00019452,2]
[388864634,1759437051530,-500.0,0.00019452,2]
[388864635,1759437051540,-500.0,0.00019452,2]
[388864636,1759437051550,-421.89570656,0.00019452,2]
[388864637,1759437051559,-2231.11,0.00019452,2]
[388864638,1759437051568,-500.0,0.00019452,2]
[388864639,1759437051577,-500.0,0.00019452,2]
[388864640,1759437051586,-534.8,0.00019452,2]
[388864641,1759437051595,-377.01359293,0.00019452,2]
[388864642,1759437051603,-500.0,0.00019452,2]
[388864643,1759437051613,-500.0,0.00019452,2]
[388864644,1759437051622,-500.0,0.00019452,2]
[388864645,1759437051631,-500.0,0.00019452,2]
[388864646,1759437051641,-500.0,0.00019452,2]
[388864647,1759437051651,-1000.0,0.00019452,2]
[388864648,1759437051660,-500.0,0.00019452,2]
[388864649,1759437051670,-500.0,0.00019452,2]
[388864650,1759437051680,-659.83,0.00019452,2]
[388864651,1759437051690,-500.0,0.00019452,2]
[388864652,1759437051749,-463.64878607,0.00019452,2]
[388864653,1759437051768,-500.0,0.00019452,2]
[388864654,1759437051781,-500.0,0.00019452,2]
[388864655,1759437051791,-500.0,0.00019452,2]
[388864656,1759437051800,-819.53,0.00019452,2]
[388864657,1759437051810,-500.0,0.00019452,2]
[388864658,1759437051819,-500.0,0.00019452,2]
[388864659,1759437051827,-500.0,0.00019452,2]
[388864660,1759437051836,-1409.88,0.00019452,2]
[388864661,1759437051845,-500.0,0.00019452,2]
[388864662,1759437051855,-500.0,0.00019452,2]
[388864663,1759437051864,-500.0,0.00019452,2]
[388864664,1759437051874,-500.0,0.00019452,2]
[388864665,1759437051883,-500.0,0.00019452,2]
[388864666,1759437051892,-500.0,0.00019452,2]
[388864667,1759437051902,-420.65498039,0.00019452,2]
[388864668,1759437051911,-500.0,0.00019452,2]
[388864669,1759437051920,-594.95,0.00019452,2]
[388864670,1759437051931,-500.0,0.00019452,2]
[388864671,1759437051940,-500.0,0.00019452,2]
[388864672,1759437051949,-500.0,0.00019452,2]
[388864673,1759437051959,-500.0,0.00019452,2]
[388864674,1759437051968,-500.0,0.00019452,2]
[388864675,1759437051978,-500.0,0.00019452,2]
[388864676,1759437051987,-500.0,0.00019452,2]
[388864677,1759437051996,-463.06537407,0.00019452,2]
[388864678,1759437052005,-947.28,0.00019452,2]
[388864679,1759437052015,-500.0,0.00019452,2]
[388864680,1759437052024,-536.83826946,0.00019452,2]
[388864681,1759437052033,-500.0,0.00019452,2]
[388864682,1759437052043,-500.0,0.00019452,2]
[388864683,1759437052052,-423.52123033,0.00019452,2]
[388864684,1759437052062,-500.0,0.00019452,2]
[388864685,1759437052071,-500.0,0.00019452,2]
[388864686,1759437052080,-552.43,0.00019452,2]
[388864687,1759437052089,-627.05,0.00019452,2]
[388864688,1759437052098,-500.0,0.00019452,2]
[388864689,1759437052108,-647.04,0.00019452,2]
[388864690,1759437052117,-500.0,0.00019452,2]
[388864691,1759437052126,-500.0,0.00019452,2]
[388864692,1759437052135,-563.05,0.00019452,2]
[388864693,1759437052144,-500.0,0.00019452,2]
[388864694,1759437052154,-845.39,0.00019452,2]
[388864695,1759437052163,-500.0,0.00019452,2]
[388864696,1759437052172,-500.0,0.00019452,2]
[388864697,1759437052181,-500.0,0.00019452,2]
[388864698,1759437052191,-500.0,0.00019452,2]
[388864699,1759437052200,-500.0,0.00019452,2]
[388864700,1759437052210,-500.0,0.00019452,2]
[388864701,1759437052219,-530.13,0.00019452,2]
[388864702,1759437052228,-500.0,0.00019452,2]
[388864703,1759437052238,-500.0,0.00019452,2]
[388864704,1759437052247,-800.14,0.00019452,2]
[388864705,1759437052256,-500.0,0.00019452,2]
[388864706,1759437052266,-500.0,0.00019452,2]
[388864707,1759437052275,-724.38,0.00019452,2]
[388864708,1759437052284,-500.0,0.00019452,2]
[388864709,1759437052294,-500.0,0.00019452,2]
[388864710,1759437052304,-500.0,0.00019452,2]
[388864711,1759437052313,-658.87,0.00019452,2]
[388864712,1759437052322,-500.0,0.00019452,2]
[388864713,1759437052332,-500.0,0.00019452,2]
[388864714,1759437052341,-500.0,0.00019452,2]
[388864715,1759437052350,-500.0,0.00019452,2]
[388864716,1759437052359,-2707.34,0.00019452,2]
[388864717,1759437052368,-500.0,0.00019452,2]
[388864718,1759437052377,-500.0,0.00019452,2]
[388864719,1759437052386,-500.0,0.00019452,2]
[388864720,1759437052395,-500.0,0.00019452,2]
[388864721,1759437052404,-590.37,0.00019452,2]
[388864722,1759437052414,-500.0,0.00019452,2]
[388864723,1759437052423,-814.87,0.00019452,2]
[388864724,1759437052432,-572.54,0.00019452,2]
[388864725,1759437052442,-581.14,0.00019452,2]
[388864726,1759437052451,-500.0,0.00019452,2]
[388864727,1759437052460,-500.0,0.00019452,2]
[388864728,1759437052469,-593.81,0.00019452,2]
[388864729,1759437052479,-500.0,0.00019452,2]
[388864730,1759437052488,-500.0,0.00019452,2]
[388864731,1759437052497,-500.0,0.00019452,2]
[388864732,1759437052507,-500.0,0.00019452,2]
[388864733,1759437052516,-500.0,0.00019452,2]
[388864734,1759437052526,-500.0,0.00019452,2]
[388864735,1759437052536,-500.0,0.00019452,2]
[388864736,1759437052544,-564.90541551,0.00019452,2]
[388864737,1759437052554,-500.0,0.00019452,2]
[388864738,1759437052563,-1728.47,0.00019452,2]
[388864739,1759437052573,-319.19105709,0.00019452,2]
[388864740,1759437052582,-500.0,0.00019452,2]
[388864741,1759437052592,-500.0,0.00019452,2]
[388864742,1759437052601,-500.0,0.00019452,2]
[388864743,1759437052611,-691.05,0.00019452,2]
[388864744,1759437052620,-500.0,0.00019452,2]
[388864745,1759437052630,-2042.86,0.00019452,2]
[388864746,1759437052639,-500.0,0.00019452,2]
[388864747,1759437052649,-500.0,0.00019452,2]
[388864748,1759437052658,-500.0,0.00019452,2]
[388864749,1759437052667,-500.0,0.00019452,2]
[388864750,1759437052677,-500.0,0.00019452,2]
[388864751,1759437052687,-1231.27,0.00019452,2]
[388864752,1759437052698,-500.0,0.00019452,2]
[388864753,1759437052708,-834.34,0.00019452,2]
[388864754,1759437052718,-500.0,0.00019452,2]
[388864755,1759437052728,-500.0,0.00019452,2]
[388864756,1759437052738,-712.5,0.00019452,2]
[388864757,1759437052757,-500.0,0.00019452,2]
[388864758,1759437052774,-364.10806524,0.00019452,2]
[388864759,1759437052784,-1833.99,0.00019452,2]
[388864760,1759437052794,-994.31,0.00019452,2]
[388864761,1759437052803,-500.0,0.00019452,2]
[388864762,1759437052811,-500.0,0.00019452,2]
[388864763,1759437052821,-500.0,0.00019452,2]
[388864764,1759437052830,-830.69,0.00019452,2]
[388864765,1759437052839,-500.0,0.00019452,2]
[388864766,1759437052847,-500.0,0.00019452,2]
[388864767,1759437052856,-500.0,0.00019452,2]
[388864768,1759437052865,-500.0,0.00019452,2]
[388864769,1759437052873,-500.0,0.00019452,2]
[388864770,1759437052880,-500.0,0.00019452,2]
[388864771,1759437052891,-500.0,0.00019452,2]
[388864772,1759437052900,-500.0,0.00019452,2]
[388864773,1759437052909,-831.18,0.00019452,2]
[388864774,1759437052920,-581.73,0.00019452,2]
[388864775,1759437052930,-588.17,0.00019452,2]
[388864776,1759437052939,-500.0,0.00019452,2]
[388864777,1759437052949,-589.03139838,0.00019452,2]
[388864778,1759437052958,-500.0,0.00019452,2]
[388864779,1759437052968,-500.0,0.00019452,2]
[388864780,1759437052978,-500.0,0.00019452,2]
[388864781,1759437052988,-1060.63,0.00019452,2]
[388864782,1759437052998,-500.0,0.00019452,2]
[388864783,1759437053008,-500.0,0.00019452,2]
[388864784,1759437053019,-500.0,0.00019452,2]
[388864785,1759437053029,-500.0,0.00019452,2]
[388864786,1759437053039,-500.0,0.00019452,2]
[388864787,1759437053050,-500.0,0.00019452,2]
[388864788,1759437053060,-500.0,0.00019452,2]
[388864789,1759437053071,-749.89,0.00019452,2]
[388864790,1759437053081,-500.0,0.00019452,2]
[388864791,1759437053090,-500.0,0.00019452,2]
[388864792,1759437053100,-500.0,0.00019452,2]
[388864793,1759437053111,-1028.74,0.00019452,2]
[388864794,1759437053121,-500.0,0.00019452,2]
[388864795,1759437053131,-500.0,0.00019452,2]
[388864796,1759437053140,-242.74,0.00019452,2]
[388864797,1759437053150,-500.0,0.00019452,2]
[388864798,1759437053160,-500.0,0.00019452,2]
[388864799,1759437053169,-500.0,0.00019452,2]
[388864800,1759437053178,-500.0,0.00019452,2]
[388864801,1759437053188,-500.0,0.00019452,2]
[388864802,1759437053198,-1136.51,0.00019452,2]
[388864803,1759437053207,-500.0,0.00019452,2]
[388864804,1759437053217,-500.0,0.00019452,2]
[388864805,1759437053225,-403.65062057,0.00019452,2]
[388864806,1759437053235,-500.0,0.00019452,2]
[388864807,1759437053244,-1091.15,0.00019452,2]
[388864808,1759437053254,-500.0,0.00019452,2]
[388864809,1759437053264,-500.0,0.00019452,2]
[388864810,1759437053273,-636.0,0.00019452,2]
[388864811,1759437053283,-627.58,0.00019452,2]
[388864812,1759437053293,-635.43,0.00019452,2]
[388864813,1759437053303,-353.87291591,0.00019452,2]
[388864814,1759437053312,-500.0,0.00019452,2]
[388864815,1759437053322,-500.0,0.00019452,2]
[388864816,1759437053331,-500.0,0.00019452,2]
[388864817,1759437053340,-500.0,0.00019452,2]
[388864818,1759437053350,-500.0,0.00019452,2]
[388864819,1759437053361,-500.0,0.00019452,2]
[388864820,1759437053371,-500.0,0.00019452,2]
[388864821,1759437053380,-500.0,0.00019452,2]
[388864822,1759437053390,-576.79,0.00019452,2]
[388864823,1759437053400,-500.0,0.00019452,2]
[388864824,1759437053409,-500.0,0.00019452,2]
[388864825,1759437053418,-500.0,0.00019452,2]
[388864826,1759437053428,-500.0,0.00019452,2]
[388864827,1759437053438,-577.64,0.00019452,2]
[388864828,1759437053448,-413.69990544,0.00019452,2]
[388864829,1759437053457,-500.0,0.00019452,2]
[388864830,1759437053467,-500.0,0.00019452,2]
[388864831,1759437053477,-500.0,0.00019452,2]
[388864832,1759437053487,-500.0,0.00019452,2]
[388864833,1759437053496,-500.0,0.00019452,2]
[388864834,1759437053505,-793.6,0.00019452,2]
[388864835,1759437053515,-1446.8,0.00019452,2]
[388864836,1759437053525,-782.98,0.00019452,2]
[388864837,1759437053535,-500.0,0.00019452,2]
[388864838,1759437053544,-410.35683966,0.00019452,2]
[388864839,1759437053553,-364.87413998,0.00019452,2]
[388864840,1759437053562,-500.0,0.00019452,2]
[388864841,1759437053571,-2409.69,0.00019452,2]
[388864842,1759437053582,-573.59,0.00019452,2]
[388864843,1759437053591,-500.0,0.00019452,2]
[388864844,1759437053601,-527.64,0.00019452,2]
[388864845,1759437053610,-500.0,0.00019452,2]
[388864846,1759437053620,-760.67,0.00019452,2]
[388864847,1759437053630,-500.0,0.00019452,2]
[388864848,1759437053639,-500.0,0.00019452,2]
[388864849,1759437053649,-756.12,0.00019452,2]
[388864850,1759437053659,-535.69,0.00019452,2]
[388864851,1759437053668,-500.0,0.00019452,2]
[388864852,1759437053678,-622.95,0.00019452,2]
[388864853,1759437053689,-500.0,0.00019452,2]
[388864854,1759437053699,-444.87879383,0.00019452,2]
[388864855,1759437053709,-500.0,0.00019452,2]
[388864856,1759437053719,-500.0,0.00019452,2]
[388864857,1759437053730,-500.0,0.00019452,2]
[388864858,1759437053740,-569.94,0.00019452,2]
[388864859,1759437053755,-500.0,0.00019452,2]
[388864860,1759437053765,-1081.88,0.00019452,2]
[388864861,1759437053774,-500.0,0.00019452,2]
[388864862,1759437053784,-500.0,0.00019452,2]
[388864863,1759437053796,-2537.98,0.00019452,2]
[388864864,1759437053806,-500.0,0.00019452,2]
[388864865,1759437053815,-459.99205877,0.00019452,2]
[388864866,1759437053825,-728.19,0.00019452,2]
[388864867,1759437053834,-803.27,0.00019452,2]
[388864868,1759437053843,-500.0,0.00019452,2]
[388864869,1759437053853,-2465.61,0.00019452,2]
[388864870,1759437053862,-511.81,0.00019452,2]
[388864871,1759437053871,-1981.18,0.00019452,2]
[388864872,1759437053881,-970.39,0.00019452,2]
[388864873,1759437053890,-623.88,0.00019452,2]
[388864874,1759437053899,-1465.61,0.00019452,2]
[388864875,1759437053909,-500.0,0.00019452,2]
[388864876,1759437053919,-500.0,0.00019452,2]
[388864877,1759437053928,-500.0,0.00019452,2]
[388864878,1759437053938,-1372.38,0.00019452,2]
[388864879,1759437053948,-585.53,0.00019452,2]
[388864880,1759437053957,-1634.93,0.00019452,2]
[388864881,1759437053966,-1213.07,0.00019452,2]
[388864882,1759437053976,-1815.58,0.00019452,2]
[388864883,1759437053985,-500.0,0.00019452,2]
[388864884,1759437053995,-500.0,0.00019452,2]
[388864885,1759437054005,-1800.49,0.00019452,2]
[388864886,1759437054015,-500.0,0.00019452,2]
[388864887,1759437054025,-500.0,0.00019452,2]
[388864888,1759437054035,-470.11447334,0.00019452,2]
[388864889,1759437054045,-794.15,0.00019452,2]
[388864890,1759437054055,-583.5,0.00019452,2]
[388864891,1759437054065,-856.03,0.00019452,2]
[388864892,1759437054075,-910.49,0.00019452,2]
[388864893,1759437054085,-5866.58,0.00019452,2]
[388864894,1759437054095,-848.85,0.00019452,2]
[388864895,1759437054105,-1791.63,0.00019452,2]
[388864896,1759437054115,-500.0,0.00019452,2]
[388864897,1759437054126,-3623.67,0.00019452,2]
[388864898,1759437054136,-193.09406968,0.00019452,2]
[388864899,1759437054146,-500.0,0.00019452,2]
[388864900,1759437054155,-1904.51,0.00019452,2]
[388864901,1759437054166,-754.7,0.00019452,2]
[388864902,1759437054175,-500.0,0.00019452,2]
[388864903,1759437054185,-621.52,0.00019452,2]
[388864904,1759437054195,-500.0,0.00019452,2]
[388864905,1759437054206,-924.16,0.00019452,2]
[388864906,1759437054216,-500.0,0.00019452,2]
[388864907,1759437054226,-528.14,0.00019452,2]
[388864908,1759437054236,-500.0,0.00019452,2]
[388864909,1759437054245,-1869.45,0.00019452,2]
[388864910,1759437054255,-779.39,0.00019452,2]
[388864911,1759437054265,-940.13,0.00019452,2]
[388864912,1759437054275,-500.0,0.00019452,2]
[388864913,1759437054284,-1345.69,0.00019452,2]
[388864914,1759437054294,-500.0,0.00019452,2]
[388864915,1759437054303,-500.0,0.00019452,2]
[388864916,1759437054313,-500.0,0.00019452,2]
[388864917,1759437054323,-503.89,0.00019452,2]
[388864918,1759437054332,-626.27,0.00019452,2]
[388864919,1759437054342,-500.0,0.00019452,2]
[388864920,1759437054352,-500.0,0.00019452,2]
[388864921,1759437054362,-1808.08,0.00019452,2]
[388864922,1759437054371,-6543.06,0.00019452,2]
[388864923,1759437054380,-713.26,0.00019452,2]
[388864924,1759437054390,-500.0,0.00019452,2]
[388864925,1759437054400,-500.0,0.00019452,2]
[388864926,1759437054409,-500.0,0.00019452,2]
[388864927,1759437054419,-500.0,0.00019452,2]
[388864928,1759437054429,-500.0,0.00019452,2]
[388864929,1759437054438,-500.0,0.00019452,2]
[388864930,1759437054447,-1362.78,0.00019452,2]
[388864931,1759437054456,-500.0,0.00019452,2]
[388864932,1759437054466,-500.0,0.00019452,2]
[388864933,1759437054476,-489.31699093,0.00019452,2]
[388864934,1759437054486,-500.0,0.00019452,2]
[388864935,1759437054496,-791.0,0.00019452,2]
[388864936,1759437054506,-500.0,0.00019452,2]
[388864937,1759437054516,-500.0,0.00019452,2]
[388864938,1759437054526,-500.0,0.00019452,2]
[388864939,1759437054536,-1501.27,0.00019452,2]
[388864940,1759437054546,-500.0,0.00019452,2]
[388864941,1759437054556,-500.0,0.00019452,2]
[388864942,1759437054566,-500.0,0.00019452,2]
[388864943,1759437054575,-5178.1,0.00019452,2]
[388864944,1759437054586,-837.18,0.00019452,2]
[388864945,1759437054596,-3551.68,0.00019452,2]
[388864946,1759437054605,-1101.28,0.00019452,2]
[388864947,1759437054615,-500.0,0.00019452,2]
[388864948,1759437054624,-2474.57,0.00019452,2]
[388864949,1759437054635,-1360.86,0.00019452,2]
[388864950,1759437054645,-938.0,0.00019452,2]
[388864951,1759437054655,-500.0,0.00019452,2]
[388864952,1759437054664,-1181.05,0.00019452,2]
[388864953,1759437054674,-500.0,0.00019452,2]
[388864954,1759437054684,-600.6,0.00019452,2]
[388864955,1759437054694,-529.66,0.00019452,2]
[388864956,1759437054703,-500.0,0.00019452,2]
[388864957,1759437054714,-444.80513608,0.00019452,2]
[388864958,1759437054724,-500.0,0.00019452,2]
[388864959,1759437054733,-500.0,0.00019452,2]
[388864960,1759437054743,-736.6,0.00019452,2]
[388864961,1759437054758,-857.34,0.00019452,2]
[388864962,1759437054768,-1097.68,0.00019452,2]
[388864963,1759437054778,-500.0,0.00019452,2]
[388864964,1759437054789,-500.0,0.00019452,2]
[388864965,1759437054805,-500.0,0.00019452,2]
[388864966,1759437054815,-3071.7,0.00019452,2]
[388864967,1759437054825,-1045.43,0.00019452,2]
[388864968,1759437054835,-993.83,0.00019452,2]
[388864969,1759437054844,-500.0,0.00019452,2]
[388864970,1759437054855,-1078.91,0.00019452,2]
[388864971,1759437054874,-717.01,0.00019452,2]
[388864972,1759437054894,-3247.88,0.00019452,2]
[388864973,1759437054914,-500.0,0.00019452,2]
[388864974,1759437054925,-500.0,0.00019452,2]
[388864975,1759437054935,-500.0,0.00019452,2]
[388864976,1759437054945,-500.0,0.00019452,2]
[388864977,1759437054955,-957.09,0.00019452,2]
[388864978,1759437054965,-870.51,0.00019452,2]
[388864979,1759437054975,-500.0,0.00019452,2]
[388864980,1759437054986,-500.0,0.00019452,2]
[388864981,1759437054996,-500.0,0.00019452,2]
[388864982,1759437055008,-500.0,0.00019452,2]
[388864983,1759437055017,-2235.88,0.00019452,2]
[388864984,1759437055028,-1662.23,0.00019452,2]
[388864985,1759437055040,-500.0,0.00019452,2]
[388864986,1759437055051,-500.0,0.00019452,2]
[388864987,1759437055061,-500.0,0.00019452,2]
[388864988,1759437055071,-1188.35,0.00019452,2]
[388864989,1759437055084,-1150.11,0.00019452,2]
[388864990,1759437055094,-500.0,0.00019452,2]
[388864991,1759437055103,-500.0,0.00019452,2]
[388864992,1759437055113,-1000.0,0.00019452,2]
[388864993,1759437055123,-904.3,0.00019452,2]
[388864994,1759437055132,-500.0,0.00019452,2]
[388864995,1759437055142,-500.0,0.00019452,2]
[388864996,1759437055152,-1073.96,0.00019452,2]
[388864997,1759437055162,-500.0,0.00019452,2]
[388864998,1759437055172,-1286.9,0.00019452,2]
[388864999,1759437055182,-500.0,0.00019452,2]
[388865000,1759437055193,-500.0,0.00019452,2]
[388865001,1759437055202,-789.86,0.00019452,2]
[388865002,1759437055212,-937.94,0.00019452,2]